{"text_format":"3","workbook":"xlsx","n_sheets":1,"sheets":["Scheda attività annuale"],"not_rendered":{"defined_names":2},"read":"whole","date_system":"1900"}

{"sheet":"Scheda attività annuale","index":0,"n_rows":140,"n_cols":12,"rows_kept":140,"merged":[[0,1,1,11],[2,6,2,7],[2,8,2,9],[5,1,5,11],[15,3,15,4],[26,3,26,4],[37,3,37,4],[39,1,39,11],[49,3,49,4],[60,3,60,4],[71,3,71,4],[73,1,73,11],[83,3,83,4],[94,3,94,4],[105,3,105,4],[107,1,107,11],[117,3,117,4],[128,3,128,4],[139,3,139,4]]}
[null,"Scheda orario del dipendente"]
[]
[null,"Nome del dipendente:",null,"Posta elettronica:",null,null,"Totale da inizio anno:"]
[null,"Manager:",null,"Telefono:",null,null,"Ore normali:",{"$f":"SUM(C16,C27,C38,C50,C61,C72,C84,C95,C106,C118,C129,C140)","v":0},"Ore di straordinario:",{"$f":"SUM(F16,F27,F38,F50,F61,F72,F84,F95,F106,F118,F129,F140)","v":0},"Totale:",{"$f":"SUM(H4,J4)","v":0}]
[]
[null,"Gennaio, febbraio, marzo    Scheda orario del dipendente: Giornaliera, settimanale, mensile, annuale"]
[null,"Gennaio","Settimana 1","Straordinario","Settimana 2","Straordinario ","Settimana 3","Straordinario  ","Settimana 4","Straordinario   ","Settimana 5","Straordinario    "]
[null,"Lunedì"]
[null,"Martedì"]
[null,"Mercoledì"]
[null,"Giovedì"]
[null,"Venerdì"]
[null,"Sabato"]
[null,"Domenica"]
[null,"Totale ore settimanali",{"$f":"SUBTOTAL(109,Gennaio[Settimana 1])","v":0},{"$f":"SUBTOTAL(109,Gennaio[Straordinario])","v":0},{"$f":"SUBTOTAL(109,Gennaio[Settimana 2])","v":0},{"$f":"SUBTOTAL(109,Gennaio[[Straordinario ]])","v":0},{"$f":"SUBTOTAL(109,Gennaio[Settimana 3])","v":0},{"$f":"SUBTOTAL(109,Gennaio[[Straordinario  ]])","v":0},{"$f":"SUBTOTAL(109,Gennaio[Settimana 4])","v":0},{"$f":"SUBTOTAL(109,Gennaio[[Straordinario   ]])","v":0},{"$f":"SUBTOTAL(109,Gennaio[Settimana 5])","v":0},{"$f":"SUBTOTAL(109,Gennaio[[Straordinario    ]])","v":0}]
[null,"Totale gennaio: Ore normali",{"$f":"SUM(Gennaio[[#Totals],[Settimana 1]],Gennaio[[#Totals],[Settimana 2]],Gennaio[[#Totals],[Settimana 3]],Gennaio[[#Totals],[Settimana 4]],Gennaio[[#Totals],[Settimana 5]])","v":0},"Totale gennaio: Straordinario",null,{"$f":"SUM(Gennaio[[#Totals],[Straordinario]],Gennaio[[#Totals],[Straordinario ]],Gennaio[[#Totals],[Straordinario  ]],Gennaio[[#Totals],[Straordinario   ]],Gennaio[[#Totals],[Straordinario    ]])","v":0}]
[]
[null,"Febbraio","Settimana 1","Straordinario","Settimana 2","Straordinario ","Settimana 3","Straordinario  ","Settimana 4","Straordinario   ","Settimana 5","Straordinario    "]
[null,"Lunedì"]
[null,"Martedì"]
[null,"Mercoledì"]
[null,"Giovedì"]
[null,"Venerdì"]
[null,"Sabato"]
[null,"Domenica"]
[null,"Totale ore settimanali",{"$f":"SUBTOTAL(109,Febbraio[Settimana 1])","v":0},{"$f":"SUBTOTAL(109,Febbraio[Straordinario])","v":0},{"$f":"SUBTOTAL(109,Febbraio[Settimana 2])","v":0},{"$f":"SUBTOTAL(109,Febbraio[[Straordinario ]])","v":0},{"$f":"SUBTOTAL(109,Febbraio[Settimana 3])","v":0},{"$f":"SUBTOTAL(109,Febbraio[[Straordinario  ]])","v":0},{"$f":"SUBTOTAL(109,Febbraio[Settimana 4])","v":0},{"$f":"SUBTOTAL(109,Febbraio[[Straordinario   ]])","v":0},{"$f":"SUBTOTAL(109,Febbraio[Settimana 5])","v":0},{"$f":"SUBTOTAL(109,Febbraio[[Straordinario    ]])","v":0}]
[null,"Totale febbraio: Ore normali",{"$f":"SUM(Febbraio[[#Totals],[Settimana 1]],Febbraio[[#Totals],[Settimana 2]],Febbraio[[#Totals],[Settimana 3]],Febbraio[[#Totals],[Settimana 4]],Febbraio[[#Totals],[Settimana 5]])","v":0},"Totale febbraio: Straordinario",null,{"$f":"SUM(Febbraio[[#Totals],[Straordinario]],Febbraio[[#Totals],[Straordinario ]],Febbraio[[#Totals],[Straordinario  ]],Febbraio[[#Totals],[Straordinario   ]],Febbraio[[#Totals],[Straordinario    ]])","v":0}]
[]
[null,"Marzo","Settimana 1","Straordinario","Settimana 2","Straordinario ","Settimana 3","Straordinario  ","Settimana 4","Straordinario   ","Settimana 5","Straordinario    "]
[null,"Lunedì"]
[null,"Martedì"]
[null,"Mercoledì"]
[null,"Giovedì"]
[null,"Venerdì"]
[null,"Sabato"]
[null,"Domenica"]
[null,"Totale ore settimanali",{"$f":"SUBTOTAL(109,Marzo[Settimana 1])","v":0},{"$f":"SUBTOTAL(109,Marzo[Straordinario])","v":0},{"$f":"SUBTOTAL(109,Marzo[Settimana 2])","v":0},{"$f":"SUBTOTAL(109,Marzo[[Straordinario ]])","v":0},{"$f":"SUBTOTAL(109,Marzo[Settimana 3])","v":0},{"$f":"SUBTOTAL(109,Marzo[[Straordinario  ]])","v":0},{"$f":"SUBTOTAL(109,Marzo[Settimana 4])","v":0},{"$f":"SUBTOTAL(109,Marzo[[Straordinario   ]])","v":0},{"$f":"SUBTOTAL(109,Marzo[Settimana 5])","v":0},{"$f":"SUBTOTAL(109,Marzo[[Straordinario    ]])","v":0}]
[null,"Totale marzo: Ore normali",{"$f":"SUM(Marzo[[#Totals],[Settimana 1]],Marzo[[#Totals],[Settimana 2]],Marzo[[#Totals],[Settimana 3]],Marzo[[#Totals],[Settimana 4]],Marzo[[#Totals],[Settimana 5]])","v":0},"Totale marzo: Straordinario",null,{"$f":"SUM(Marzo[[#Totals],[Straordinario]],Marzo[[#Totals],[Straordinario ]],Marzo[[#Totals],[Straordinario  ]],Marzo[[#Totals],[Straordinario   ]],Marzo[[#Totals],[Straordinario    ]])","v":0}]
[]
[null,"Aprile, maggio, giugno       Scheda orario del dipendente: Giornaliera, settimanale, mensile, annuale"]
[null,"Aprile","Settimana 1","Straordinario","Settimana 2","Straordinario ","Settimana 3","Straordinario  ","Settimana 4","Straordinario   ","Settimana 5","Straordinario    "]
[null,"Lunedì"]
[null,"Martedì"]
[null,"Mercoledì"]
[null,"Giovedì"]
[null,"Venerdì"]
[null,"Sabato"]
[null,"Domenica"]
[null,"Totale ore settimanali",{"$f":"SUBTOTAL(109,Aprile[Settimana 1])","v":0},{"$f":"SUBTOTAL(109,Aprile[Straordinario])","v":0},{"$f":"SUBTOTAL(109,Aprile[Settimana 2])","v":0},{"$f":"SUBTOTAL(109,Aprile[[Straordinario ]])","v":0},{"$f":"SUBTOTAL(109,Aprile[Settimana 3])","v":0},{"$f":"SUBTOTAL(109,Aprile[[Straordinario  ]])","v":0},{"$f":"SUBTOTAL(109,Aprile[Settimana 4])","v":0},{"$f":"SUBTOTAL(109,Aprile[[Straordinario   ]])","v":0},{"$f":"SUBTOTAL(109,Aprile[Settimana 5])","v":0},{"$f":"SUBTOTAL(109,Aprile[[Straordinario    ]])","v":0}]
[null,"Totale aprile: Ore normali",{"$f":"SUM(Aprile[[#Totals],[Settimana 1]],Aprile[[#Totals],[Settimana 2]],Aprile[[#Totals],[Settimana 3]],Aprile[[#Totals],[Settimana 4]],Aprile[[#Totals],[Settimana 5]])","v":0},"Totale aprile: Straordinario",null,{"$f":"SUM(Aprile[[#Totals],[Straordinario]],Aprile[[#Totals],[Straordinario ]],Aprile[[#Totals],[Straordinario  ]],Aprile[[#Totals],[Straordinario   ]],Aprile[[#Totals],[Straordinario    ]])","v":0}]
[]
[null,"Maggio","Settimana 1","Straordinario","Settimana 2","Straordinario ","Settimana 3","Straordinario  ","Settimana 4","Straordinario   ","Settimana 5","Straordinario    "]
[null,"Lunedì"]
[null,"Martedì"]
[null,"Mercoledì"]
[null,"Giovedì"]
[null,"Venerdì"]
[null,"Sabato"]
[null,"Domenica"]
[null,"Totale ore settimanali",{"$f":"SUBTOTAL(109,Maggio[Settimana 1])","v":0},{"$f":"SUBTOTAL(109,Maggio[Straordinario])","v":0},{"$f":"SUBTOTAL(109,Maggio[Settimana 2])","v":0},{"$f":"SUBTOTAL(109,Maggio[[Straordinario ]])","v":0},{"$f":"SUBTOTAL(109,Maggio[Settimana 3])","v":0},{"$f":"SUBTOTAL(109,Maggio[[Straordinario  ]])","v":0},{"$f":"SUBTOTAL(109,Maggio[Settimana 4])","v":0},{"$f":"SUBTOTAL(109,Maggio[[Straordinario   ]])","v":0},{"$f":"SUBTOTAL(109,Maggio[Settimana 5])","v":0},{"$f":"SUBTOTAL(109,Maggio[[Straordinario    ]])","v":0}]
[null,"Totale maggio: Ore normali",{"$f":"SUM(Maggio[[#Totals],[Settimana 1]],Maggio[[#Totals],[Settimana 2]],Maggio[[#Totals],[Settimana 3]],Maggio[[#Totals],[Settimana 4]],Maggio[[#Totals],[Settimana 5]])","v":0},"Totale maggio: Straordinario",null,{"$f":"SUM(Maggio[[#Totals],[Straordinario]],Maggio[[#Totals],[Straordinario ]],Maggio[[#Totals],[Straordinario  ]],Maggio[[#Totals],[Straordinario   ]],Maggio[[#Totals],[Straordinario    ]])","v":0}]
[]
[null,"Giugno","Settimana 1","Straordinario","Settimana 2","Straordinario ","Settimana 3","Straordinario  ","Settimana 4","Straordinario   ","Settimana 5","Straordinario    "]
[null,"Lunedì"]
[null,"Martedì"]
[null,"Mercoledì"]
[null,"Giovedì"]
[null,"Venerdì"]
[null,"Sabato"]
[null,"Domenica"]
[null,"Totale ore settimanali",{"$f":"SUBTOTAL(109,Giugno[Settimana 1])","v":0},{"$f":"SUBTOTAL(109,Giugno[Straordinario])","v":0},{"$f":"SUBTOTAL(109,Giugno[Settimana 2])","v":0},{"$f":"SUBTOTAL(109,Giugno[[Straordinario ]])","v":0},{"$f":"SUBTOTAL(109,Giugno[Settimana 3])","v":0},{"$f":"SUBTOTAL(109,Giugno[[Straordinario  ]])","v":0},{"$f":"SUBTOTAL(109,Giugno[Settimana 4])","v":0},{"$f":"SUBTOTAL(109,Giugno[[Straordinario   ]])","v":0},{"$f":"SUBTOTAL(109,Giugno[Settimana 5])","v":0},{"$f":"SUBTOTAL(109,Giugno[[Straordinario    ]])","v":0}]
[null,"Totale giugno: Ore normali",{"$f":"SUM(Giugno[[#Totals],[Settimana 1]],Giugno[[#Totals],[Settimana 2]],Giugno[[#Totals],[Settimana 3]],Giugno[[#Totals],[Settimana 4]],Giugno[[#Totals],[Settimana 5]])","v":0},"Totale giugno: Straordinario",null,{"$f":"SUM(Giugno[[#Totals],[Straordinario]],Giugno[[#Totals],[Straordinario ]],Giugno[[#Totals],[Straordinario  ]],Giugno[[#Totals],[Straordinario   ]],Giugno[[#Totals],[Straordinario    ]])","v":0}]
[]
[null,"Luglio, agosto, settembre      Scheda orario del dipendente: Giornaliera, settimanale, mensile, annuale"]
[null,"Luglio","Settimana 1","Straordinario","Settimana 2","Straordinario ","Settimana 3","Straordinario  ","Settimana 4","Straordinario   ","Settimana 5","Straordinario    "]
[null,"Lunedì"]
[null,"Martedì"]
[null,"Mercoledì"]
[null,"Giovedì"]
[null,"Venerdì"]
[null,"Sabato"]
[null,"Domenica"]
[null,"Totale ore settimanali",{"$f":"SUBTOTAL(109,Luglio[Settimana 1])","v":0},{"$f":"SUBTOTAL(109,Luglio[Straordinario])","v":0},{"$f":"SUBTOTAL(109,Luglio[Settimana 2])","v":0},{"$f":"SUBTOTAL(109,Luglio[[Straordinario ]])","v":0},{"$f":"SUBTOTAL(109,Luglio[Settimana 3])","v":0},{"$f":"SUBTOTAL(109,Luglio[[Straordinario  ]])","v":0},{"$f":"SUBTOTAL(109,Luglio[Settimana 4])","v":0},{"$f":"SUBTOTAL(109,Luglio[[Straordinario   ]])","v":0},{"$f":"SUBTOTAL(109,Luglio[Settimana 5])","v":0},{"$f":"SUBTOTAL(109,Luglio[[Straordinario    ]])","v":0}]
[null,"Totale luglio: Ore normali",{"$f":"SUM(Luglio[[#Totals],[Settimana 1]],Luglio[[#Totals],[Settimana 2]],Luglio[[#Totals],[Settimana 3]],Luglio[[#Totals],[Settimana 4]],Luglio[[#Totals],[Settimana 5]])","v":0},"Totale luglio: Straordinario",null,{"$f":"SUM(Luglio[[#Totals],[Straordinario]],Luglio[[#Totals],[Straordinario ]],Luglio[[#Totals],[Straordinario  ]],Luglio[[#Totals],[Straordinario   ]],Luglio[[#Totals],[Straordinario    ]])","v":0}]
[]
[null,"Agosto","Settimana 1","Straordinario","Settimana 2","Straordinario ","Settimana 3","Straordinario  ","Settimana 4","Straordinario   ","Settimana 5","Straordinario    "]
[null,"Lunedì"]
[null,"Martedì"]
[null,"Mercoledì"]
[null,"Giovedì"]
[null,"Venerdì"]
[null,"Sabato"]
[null,"Domenica"]
[null,"Totale ore settimanali",{"$f":"SUBTOTAL(109,Agosto[Settimana 1])","v":0},{"$f":"SUBTOTAL(109,Agosto[Straordinario])","v":0},{"$f":"SUBTOTAL(109,Agosto[Settimana 2])","v":0},{"$f":"SUBTOTAL(109,Agosto[[Straordinario ]])","v":0},{"$f":"SUBTOTAL(109,Agosto[Settimana 3])","v":0},{"$f":"SUBTOTAL(109,Agosto[[Straordinario  ]])","v":0},{"$f":"SUBTOTAL(109,Agosto[Settimana 4])","v":0},{"$f":"SUBTOTAL(109,Agosto[[Straordinario   ]])","v":0},{"$f":"SUBTOTAL(109,Agosto[Settimana 5])","v":0},{"$f":"SUBTOTAL(109,Agosto[[Straordinario    ]])","v":0}]
[null,"Totale agosto: Ore normali",{"$f":"SUM(Agosto[[#Totals],[Settimana 1]],Agosto[[#Totals],[Settimana 2]],Agosto[[#Totals],[Settimana 3]],Agosto[[#Totals],[Settimana 4]],Agosto[[#Totals],[Settimana 5]])","v":0},"Totale agosto: Straordinario",null,{"$f":"SUM(Agosto[[#Totals],[Straordinario]],Agosto[[#Totals],[Straordinario ]],Agosto[[#Totals],[Straordinario  ]],Agosto[[#Totals],[Straordinario   ]],Agosto[[#Totals],[Straordinario    ]])","v":0}]
[]
[null,"Settembre","Settimana 1","Straordinario","Settimana 2","Straordinario ","Settimana 3","Straordinario  ","Settimana 4","Straordinario   ","Settimana 5","Straordinario    "]
[null,"Lunedì"]
[null,"Martedì"]
[null,"Mercoledì"]
[null,"Giovedì"]
[null,"Venerdì"]
[null,"Sabato"]
[null,"Domenica"]
[null,"Totale ore settimanali",{"$f":"SUBTOTAL(109,Settembre[Settimana 1])","v":0},{"$f":"SUBTOTAL(109,Settembre[Straordinario])","v":0},{"$f":"SUBTOTAL(109,Settembre[Settimana 2])","v":0},{"$f":"SUBTOTAL(109,Settembre[[Straordinario ]])","v":0},{"$f":"SUBTOTAL(109,Settembre[Settimana 3])","v":0},{"$f":"SUBTOTAL(109,Settembre[[Straordinario  ]])","v":0},{"$f":"SUBTOTAL(109,Settembre[Settimana 4])","v":0},{"$f":"SUBTOTAL(109,Settembre[[Straordinario   ]])","v":0},{"$f":"SUBTOTAL(109,Settembre[Settimana 5])","v":0},{"$f":"SUBTOTAL(109,Settembre[[Straordinario    ]])","v":0}]
[null,"Totale settembre: Ore normali",{"$f":"SUM(Settembre[[#Totals],[Settimana 1]],Settembre[[#Totals],[Settimana 2]],Settembre[[#Totals],[Settimana 3]],Settembre[[#Totals],[Settimana 4]],Settembre[[#Totals],[Settimana 5]])","v":0},"Totale settembre: Straordinario",null,{"$f":"SUM(Settembre[[#Totals],[Straordinario]],Settembre[[#Totals],[Straordinario ]],Settembre[[#Totals],[Straordinario  ]],Settembre[[#Totals],[Straordinario   ]],Settembre[[#Totals],[Straordinario    ]])","v":0}]
[]
[null,"Ottobre, novembre, dicembre      Scheda orario del dipendente: Giornaliera, settimanale, mensile, annuale"]
[null,"Ottobre","Settimana 1","Straordinario","Settimana 2","Straordinario ","Settimana 3","Straordinario  ","Settimana 4","Straordinario   ","Settimana 5","Straordinario    "]
[null,"Lunedì"]
[null,"Martedì"]
[null,"Mercoledì"]
[null,"Giovedì"]
[null,"Venerdì"]
[null,"Sabato"]
[null,"Domenica"]
[null,"Totale ore settimanali",{"$f":"SUBTOTAL(109,Ottobre[Settimana 1])","v":0},{"$f":"SUBTOTAL(109,Ottobre[Straordinario])","v":0},{"$f":"SUBTOTAL(109,Ottobre[Settimana 2])","v":0},{"$f":"SUBTOTAL(109,Ottobre[[Straordinario ]])","v":0},{"$f":"SUBTOTAL(109,Ottobre[Settimana 3])","v":0},{"$f":"SUBTOTAL(109,Ottobre[[Straordinario  ]])","v":0},{"$f":"SUBTOTAL(109,Ottobre[Settimana 4])","v":0},{"$f":"SUBTOTAL(109,Ottobre[[Straordinario   ]])","v":0},{"$f":"SUBTOTAL(109,Ottobre[Settimana 5])","v":0},{"$f":"SUBTOTAL(109,Ottobre[[Straordinario    ]])","v":0}]
[null,"Totale ottobre: Ore normali",{"$f":"SUM(Ottobre[[#Totals],[Settimana 1]],Ottobre[[#Totals],[Settimana 2]],Ottobre[[#Totals],[Settimana 3]],Ottobre[[#Totals],[Settimana 4]],Ottobre[[#Totals],[Settimana 5]])","v":0},"Totale ottobre: Straordinario",null,{"$f":"SUM(Ottobre[[#Totals],[Straordinario]],Ottobre[[#Totals],[Straordinario ]],Ottobre[[#Totals],[Straordinario  ]],Ottobre[[#Totals],[Straordinario   ]],Ottobre[[#Totals],[Straordinario    ]])","v":0}]
[]
[null,"Novembre","Settimana 1","Straordinario","Settimana 2","Straordinario ","Settimana 3","Straordinario  ","Settimana 4","Straordinario   ","Settimana 5","Straordinario    "]
[null,"Lunedì"]
[null,"Martedì"]
[null,"Mercoledì"]
[null,"Giovedì"]
[null,"Venerdì"]
[null,"Sabato"]
[null,"Domenica"]
[null,"Totale ore settimanali",{"$f":"SUBTOTAL(109,Novembre[Settimana 1])","v":0},{"$f":"SUBTOTAL(109,Novembre[Straordinario])","v":0},{"$f":"SUBTOTAL(109,Novembre[Settimana 2])","v":0},{"$f":"SUBTOTAL(109,Novembre[[Straordinario ]])","v":0},{"$f":"SUBTOTAL(109,Novembre[Settimana 3])","v":0},{"$f":"SUBTOTAL(109,Novembre[[Straordinario  ]])","v":0},{"$f":"SUBTOTAL(109,Novembre[Settimana 4])","v":0},{"$f":"SUBTOTAL(109,Novembre[[Straordinario   ]])","v":0},{"$f":"SUBTOTAL(109,Novembre[Settimana 5])","v":0},{"$f":"SUBTOTAL(109,Novembre[[Straordinario    ]])","v":0}]
[null,"Totale novembre: Ore normali",{"$f":"SUM(Novembre[[#Totals],[Settimana 1]],Novembre[[#Totals],[Settimana 2]],Novembre[[#Totals],[Settimana 3]],Novembre[[#Totals],[Settimana 4]],Novembre[[#Totals],[Settimana 5]])","v":0},"Totale novembre: Straordinario",null,{"$f":"SUM(Novembre[[#Totals],[Straordinario]],Novembre[[#Totals],[Straordinario ]],Novembre[[#Totals],[Straordinario  ]],Novembre[[#Totals],[Straordinario   ]],Novembre[[#Totals],[Straordinario    ]])","v":0}]
[]
[null,"Dicembre","Settimana 1","Straordinario","Settimana 2","Straordinario ","Settimana 3","Straordinario  ","Settimana 4","Straordinario   ","Settimana 5","Straordinario    "]
[null,"Lunedì"]
[null,"Martedì"]
[null,"Mercoledì"]
[null,"Giovedì"]
[null,"Venerdì"]
[null,"Sabato"]
[null,"Domenica"]
[null,"Totale ore settimanali",{"$f":"SUBTOTAL(109,Dicembre[Settimana 1])","v":0},{"$f":"SUBTOTAL(109,Dicembre[Straordinario])","v":0},{"$f":"SUBTOTAL(109,Dicembre[Settimana 2])","v":0},{"$f":"SUBTOTAL(109,Dicembre[[Straordinario ]])","v":0},{"$f":"SUBTOTAL(109,Dicembre[Settimana 3])","v":0},{"$f":"SUBTOTAL(109,Dicembre[[Straordinario  ]])","v":0},{"$f":"SUBTOTAL(109,Dicembre[Settimana 4])","v":0},{"$f":"SUBTOTAL(109,Dicembre[[Straordinario   ]])","v":0},{"$f":"SUBTOTAL(109,Dicembre[Settimana 5])","v":0},{"$f":"SUBTOTAL(109,Dicembre[[Straordinario    ]])","v":0}]
[null,"Totale dicembre: Ore normali",{"$f":"SUM(Dicembre[[#Totals],[Settimana 1]],Dicembre[[#Totals],[Settimana 2]],Dicembre[[#Totals],[Settimana 3]],Dicembre[[#Totals],[Settimana 4]],Dicembre[[#Totals],[Settimana 5]])","v":0},"Totale dicembre: Straordinario",null,{"$f":"SUM(Dicembre[[#Totals],[Straordinario]],Dicembre[[#Totals],[Straordinario ]],Dicembre[[#Totals],[Straordinario  ]],Dicembre[[#Totals],[Straordinario   ]],Dicembre[[#Totals],[Straordinario    ]])","v":0}]